[Event "Titled Tuesday Blitz May 25 2021"]
[White "Molina, Roberto Junio Brito"]
[Black "Dzhaparov, Medet"]
[WhiteFideId "2109450"]
[BlackFideId "13803689"]
[WhiteElo "2402"]
[BlackElo "1702"]
[Result "1-0"]
[Round "10"]
[TimeControl "180+1"]
[Date "2021.05.25"]
[WhiteClock "0:00:20"]
[BlackClock "0:00:02"]

1. d4 {[%clk 0:03:00]}  Nf6 {[%clk 0:02:58]} 2. c4 {[%clk 0:02:59]}  g6 {[%clk 0:02:57]} 3. Nc3 {[%clk 0:02:59]}  d5 {[%clk 0:02:56]} 4. cxd5 {[%clk 0:02:57]}  Nxd5 {[%clk 0:02:55]} 5. e4 {[%clk 0:02:58]}  Nxc3 {[%clk 0:02:54]} 6. bxc3 {[%clk 0:02:59]}  Bg7 {[%clk 0:02:54]} 7. Bc4 {[%clk 0:02:59]}  O-O {[%clk 0:02:53]} 8. Ne2 {[%clk 0:03:00]}  c5 {[%clk 0:02:53]} 9. Be3 {[%clk 0:03:00]}  Nc6 {[%clk 0:02:53]} 10. O-O {[%clk 0:03:00]}  Bg4 {[%clk 0:02:52]} 11. f3 {[%clk 0:03:00]}  Bd7 {[%clk 0:02:52]} 12. Rc1 {[%clk 0:02:59]}  Rc8 {[%clk 0:02:52]} 13. Qd2 {[%clk 0:02:59]}  Qa5 {[%clk 0:02:52]} 14. Rfd1 {[%clk 0:02:58]}  Rfd8 {[%clk 0:02:50]} 15. Bh6 {[%clk 0:02:49]}  cxd4 {[%clk 0:02:24]} 16. Bxg7 {[%clk 0:02:49]}  Kxg7 {[%clk 0:02:23]} 17. cxd4 {[%clk 0:02:44]}  Qxd2 {[%clk 0:02:10]} 18. Rxd2 {[%clk 0:02:45]}  Na5 {[%clk 0:01:56]} 19. Bd3 {[%clk 0:02:45]}  Rxc1+ {[%clk 0:01:54]} 20. Nxc1 {[%clk 0:02:46]}  Rc8 {[%clk 0:01:52]} 21. Ne2 {[%clk 0:02:46]}  e6 {[%clk 0:01:50]} 22. Kf2 {[%clk 0:02:45]}  b5 {[%clk 0:01:41]} 23. Ke3 {[%clk 0:02:41]}  a6 {[%clk 0:01:40]} 24. d5 {[%clk 0:02:38]}  exd5 {[%clk 0:01:38]} 25. exd5 {[%clk 0:02:38]}  Kf6 {[%clk 0:01:38]} 26. Kd4 {[%clk 0:02:36]}  Ke7 {[%clk 0:01:35]} 27. Nc3 {[%clk 0:02:33]}  f5 {[%clk 0:01:33]} 28. g4 {[%clk 0:02:25]}  Kd6 {[%clk 0:01:29]} 29. gxf5 {[%clk 0:02:24]}  gxf5 {[%clk 0:01:28]} 30. Rg2 {[%clk 0:02:23]}  b4 {[%clk 0:00:50]} 31. Ne2 {[%clk 0:02:19]}  b3 {[%clk 0:00:46]} 32. Nf4 {[%clk 0:02:11]}  bxa2 {[%clk 0:00:42]} 33. Rxa2 {[%clk 0:02:12]}  Nb3+ {[%clk 0:00:42]} 34. Ke3 {[%clk 0:02:11]}  Nc5 {[%clk 0:00:39]} 35. Bxa6 {[%clk 0:02:02]}  Rb8 {[%clk 0:00:38]} 36. Bc4 {[%clk 0:01:47]}  Rb4 {[%clk 0:00:37]} 37. Rc2 {[%clk 0:01:37]}  Ke5 {[%clk 0:00:26]} 38. Ne2 {[%clk 0:01:23]}  Ba4 {[%clk 0:00:23]} 39. f4+ {[%clk 0:01:22]}  Kd6 {[%clk 0:00:21]} 40. Rc1 {[%clk 0:01:17]}  Rb8 {[%clk 0:00:21]} 41. Nd4 {[%clk 0:01:13]}  Re8+ {[%clk 0:00:20]} 42. Kf3 {[%clk 0:01:11]}  Bd7 {[%clk 0:00:19]} 43. Bb5 {[%clk 0:01:00]}  Re4 {[%clk 0:00:13]} 44. Bxd7 {[%clk 0:01:00]}  Rxd4 {[%clk 0:00:13]} 45. Bxf5 {[%clk 0:01:00]}  Rxd5 {[%clk 0:00:12]} 46. Bxh7 {[%clk 0:00:59]}  Rh5 {[%clk 0:00:13]} 47. Rd1+ {[%clk 0:00:59]}  Ke7 {[%clk 0:00:12]} 48. Bg6 {[%clk 0:00:55]}  Rxh2 {[%clk 0:00:12]} 49. Bf5 {[%clk 0:00:55]}  Kf6 {[%clk 0:00:11]} 50. Bg4 {[%clk 0:00:52]}  Rc2 {[%clk 0:00:10]} 51. Rd6+ {[%clk 0:00:52]}  Ke7 {[%clk 0:00:09]} 52. Rd5 {[%clk 0:00:52]}  Rc3+ {[%clk 0:00:09]} 53. Ke2 {[%clk 0:00:51]}  Rc2+ {[%clk 0:00:08]} 54. Ke3 {[%clk 0:00:50]}  Rc4 {[%clk 0:00:05]} 55. Bf3 {[%clk 0:00:44]}  Rc3+ {[%clk 0:00:03]} 56. Ke2 {[%clk 0:00:44]}  Rc2+ {[%clk 0:00:03]} 57. Kf1 {[%clk 0:00:43]}  Rc3 {[%clk 0:00:03]} 58. Kg2 {[%clk 0:00:43]}  Rc2+ {[%clk 0:00:03]} 59. Kg3 {[%clk 0:00:43]}  Ne6 {[%clk 0:00:03]} 60. f5 {[%clk 0:00:30]}  Ng5 {[%clk 0:00:02]} 61. Bg4 {[%clk 0:00:25]}  Kf6 {[%clk 0:00:01]} 62. Rd6+ {[%clk 0:00:21]}  Ke5 {[%clk 0:00:01]} 63. Rg6 {[%clk 0:00:22]}  Rc3+ {[%clk 0:00:01]} 64. Kh4 {[%clk 0:00:22]}  Kf4 {[%clk 0:00:02]} 65. Rxg5 {[%clk 0:00:20]} 1-0


[Site "https://www.chess.com"]

[Event "Titled Tuesday Blitz May 25 2021"]
[White "Morefield, Jason"]
[Black "Seul, Georg"]
[WhiteFideId "30920825"]
[BlackFideId "4601653"]
[WhiteElo "2171"]
[BlackElo "2332"]
[Result "1-0"]
[Round "10"]
[TimeControl "180+1"]
[Date "2021.05.25"]
[WhiteClock "0:00:51"]
[BlackClock "0:00:07"]

1. Nf3 {[%clk 0:03:00]}  Nf6 {[%clk 0:02:59]} 2. c4 {[%clk 0:03:00]}  e6 {[%clk 0:02:59]} 3. g3 {[%clk 0:03:01]}  a6 {[%clk 0:02:59]} 4. Bg2 {[%clk 0:03:01]}  b5 {[%clk 0:03:00]} 5. d3 {[%clk 0:02:59]}  Bb7 {[%clk 0:02:59]} 6. O-O {[%clk 0:02:59]}  Be7 {[%clk 0:02:57]} 7. b3 {[%clk 0:02:56]}  O-O {[%clk 0:02:56]} 8. Bb2 {[%clk 0:02:56]}  c5 {[%clk 0:02:56]} 9. Nbd2 {[%clk 0:02:54]}  d6 {[%clk 0:02:55]} 10. Rc1 {[%clk 0:02:54]}  Nbd7 {[%clk 0:02:55]} 11. Rc2 {[%clk 0:02:53]}  Qb6 {[%clk 0:02:55]} 12. Qa1 {[%clk 0:02:52]}  d5 {[%clk 0:02:40]} 13. Ne5 {[%clk 0:02:50]}  Nxe5 {[%clk 0:02:37]} 14. Bxe5 {[%clk 0:02:51]}  d4 {[%clk 0:02:19]} 15. Bxb7 {[%clk 0:02:46]}  Qxb7 {[%clk 0:02:18]} 16. Bxf6 {[%clk 0:02:29]}  gxf6 {[%clk 0:02:18]} 17. cxb5 {[%clk 0:02:24]}  axb5 {[%clk 0:02:18]} 18. Ne4 {[%clk 0:02:25]}  Rfc8 {[%clk 0:01:58]} 19. Rfc1 {[%clk 0:02:23]}  Qb6 {[%clk 0:01:50]} 20. b4 {[%clk 0:02:15]}  c4 {[%clk 0:01:46]} 21. dxc4 {[%clk 0:02:14]}  Qb7 {[%clk 0:01:35]} 22. Qxd4 {[%clk 0:02:07]}  e5 {[%clk 0:01:11]} 23. Qd5 {[%clk 0:01:55]}  Qxd5 {[%clk 0:01:09]} 24. cxd5 {[%clk 0:01:56]}  Rxc2 {[%clk 0:01:09]} 25. Rxc2 {[%clk 0:01:57]}  Bxb4 {[%clk 0:01:01]} 26. Nxf6+ {[%clk 0:01:56]}  Kg7 {[%clk 0:01:00]} 27. Nd7 {[%clk 0:01:48]}  e4 {[%clk 0:00:55]} 28. e3 {[%clk 0:01:43]}  Rd8 {[%clk 0:00:51]} 29. Nb6 {[%clk 0:01:41]}  Ba5 {[%clk 0:00:50]} 30. Rc6 {[%clk 0:01:36]}  Bxb6 {[%clk 0:00:49]} 31. Rxb6 {[%clk 0:01:37]}  Rxd5 {[%clk 0:00:50]} 32. g4 {[%clk 0:01:32]}  h5 {[%clk 0:00:47]} 33. gxh5 {[%clk 0:01:28]}  Rg5+ {[%clk 0:00:46]} 34. Kh1 {[%clk 0:01:26]}  Rxh5 {[%clk 0:00:46]} 35. Rd6 {[%clk 0:01:25]}  Rc5 {[%clk 0:00:41]} 36. Kg2 {[%clk 0:01:21]}  Rg5+ {[%clk 0:00:32]} 37. Kf1 {[%clk 0:01:20]}  Rc5 {[%clk 0:00:24]} 38. Rd4 {[%clk 0:01:16]}  f5 {[%clk 0:00:24]} 39. a4 {[%clk 0:01:08]}  bxa4 {[%clk 0:00:23]} 40. Rxa4 {[%clk 0:01:09]}  Kg6 {[%clk 0:00:23]} 41. Kg2 {[%clk 0:01:09]}  Rc1 {[%clk 0:00:22]} 42. Ra8 {[%clk 0:01:09]}  Kg5 {[%clk 0:00:21]} 43. Rg8+ {[%clk 0:01:08]}  Kf6 {[%clk 0:00:21]} 44. h4 {[%clk 0:01:08]}  Kf7 {[%clk 0:00:20]} 45. Ra8 {[%clk 0:01:06]}  Kf6 {[%clk 0:00:20]} 46. Ra6+ {[%clk 0:01:05]}  Kf7 {[%clk 0:00:20]} 47. h5 {[%clk 0:01:04]}  Rb1 {[%clk 0:00:18]} 48. h6 {[%clk 0:01:03]}  Rb8 {[%clk 0:00:17]} 49. Kg3 {[%clk 0:01:03]}  Rg8+ {[%clk 0:00:16]} 50. Kf4 {[%clk 0:01:03]}  Rg2 {[%clk 0:00:16]} 51. Kxf5 {[%clk 0:01:03]}  Rxf2+ {[%clk 0:00:16]} 52. Kxe4 {[%clk 0:01:03]}  Rh2 {[%clk 0:00:16]} 53. Kf5 {[%clk 0:01:01]}  Rh5+ {[%clk 0:00:15]} 54. Kg4 {[%clk 0:01:01]}  Rh1 {[%clk 0:00:13]} 55. e4 {[%clk 0:01:00]}  Rh2 {[%clk 0:00:12]} 56. e5 {[%clk 0:00:56]}  Rh1 {[%clk 0:00:11]} 57. Rf6+ {[%clk 0:00:55]}  Ke7 {[%clk 0:00:11]} 58. Kf5 {[%clk 0:00:54]}  Rh5+ {[%clk 0:00:10]} 59. Ke4 {[%clk 0:00:53]}  Rh4+ {[%clk 0:00:10]} 60. Kd5 {[%clk 0:00:53]}  Rh1 {[%clk 0:00:09]} 61. Rg6 {[%clk 0:00:53]}  Rh2 {[%clk 0:00:08]} 62. Rg7+ {[%clk 0:00:53]}  Kf8 {[%clk 0:00:08]} 63. Rg6 {[%clk 0:00:51]}  Kf7 {[%clk 0:00:08]} 64. Ra6 {[%clk 0:00:51]}  Ke7 {[%clk 0:00:07]} 65. Ra7+ {[%clk 0:00:51]} 1-0


[Site "https://www.chess.com"]

[Event "Titled Tuesday Blitz May 25 2021"]
[White "Mortazavi, Ali"]
[Black "Lamaze, Simon"]
[WhiteFideId "401323"]
[BlackFideId "36069264"]
[WhiteElo "2339"]
[BlackElo "1938"]
[Result "0-1"]
[Round "10"]
[TimeControl "180+1"]
[Date "2021.05.25"]
[WhiteClock "0:00:01"]
[BlackClock "0:00:13"]

1. Nf3 {[%clk 0:03:00]}  Nf6 {[%clk 0:02:56]} 2. g3 {[%clk 0:03:01]}  g6 {[%clk 0:02:54]} 3. Bg2 {[%clk 0:03:01]}  Bg7 {[%clk 0:02:55]} 4. O-O {[%clk 0:03:01]}  O-O {[%clk 0:02:56]} 5. d3 {[%clk 0:03:02]}  d6 {[%clk 0:02:57]} 6. e4 {[%clk 0:03:01]}  Nbd7 {[%clk 0:02:58]} 7. Nc3 {[%clk 0:03:00]}  Re8 {[%clk 0:02:59]} 8. a4 {[%clk 0:03:00]}  a6 {[%clk 0:02:59]} 9. a5 {[%clk 0:03:00]}  e5 {[%clk 0:02:59]} 10. h3 {[%clk 0:03:00]}  c6 {[%clk 0:02:48]} 11. d4 {[%clk 0:02:52]}  exd4 {[%clk 0:02:44]} 12. Nxd4 {[%clk 0:02:52]}  Nc5 {[%clk 0:02:44]} 13. Re1 {[%clk 0:02:53]}  Qc7 {[%clk 0:02:42]} 14. Bf4 {[%clk 0:02:50]}  Nfd7 {[%clk 0:02:27]} 15. Nxc6 {[%clk 0:02:30]}  bxc6 {[%clk 0:02:13]} 16. Bxd6 {[%clk 0:02:30]}  Qb7 {[%clk 0:02:11]} 17. Rb1 {[%clk 0:02:21]}  Ra7 {[%clk 0:01:56]} 18. f4 {[%clk 0:01:44]}  Qb4 {[%clk 0:01:52]} 19. e5 {[%clk 0:01:44]}  Bf8 {[%clk 0:01:45]} 20. Ne4 {[%clk 0:01:32]}  Bxd6 {[%clk 0:01:14]} 21. Qxd6 {[%clk 0:01:29]}  Qxa5 {[%clk 0:01:02]} 22. b4 {[%clk 0:01:27]}  Nxe4 {[%clk 0:00:58]} 23. bxa5 {[%clk 0:01:19]}  Nxd6 {[%clk 0:00:57]} 24. exd6 {[%clk 0:01:20]}  Kf8 {[%clk 0:00:44]} 25. Bxc6 {[%clk 0:01:18]}  Re6 {[%clk 0:00:30]} 26. Red1 {[%clk 0:00:57]}  Ke8 {[%clk 0:00:23]} 27. f5 {[%clk 0:00:44]}  gxf5 {[%clk 0:00:21]} 28. Rb4 {[%clk 0:00:44]}  Kd8 {[%clk 0:00:17]} 29. Rh4 {[%clk 0:00:42]}  Ne5 {[%clk 0:00:18]} 30. Bg2 {[%clk 0:00:32]}  f6 {[%clk 0:00:17]} 31. Rh5 {[%clk 0:00:20]}  Rg7 {[%clk 0:00:16]} 32. Kh2 {[%clk 0:00:19]}  Bd7 {[%clk 0:00:13]} 33. Rxf5 {[%clk 0:00:18]}  Rg5 {[%clk 0:00:08]} 34. Rf4 {[%clk 0:00:18]}  Nf7 {[%clk 0:00:09]} 35. Rfd4 {[%clk 0:00:14]}  Rxa5 {[%clk 0:00:08]} 36. h4 {[%clk 0:00:11]}  Re2 {[%clk 0:00:07]} 37. c4 {[%clk 0:00:06]}  Raa2 {[%clk 0:00:07]} 38. Rg1 {[%clk 0:00:05]}  Bc6 {[%clk 0:00:06]} 39. Kh3 {[%clk 0:00:05]}  Bxg2+ {[%clk 0:00:05]} 40. Kg4 {[%clk 0:00:06]}  Re4+ {[%clk 0:00:05]} 41. Rxe4 {[%clk 0:00:06]}  Bxe4 {[%clk 0:00:06]} 42. c5 {[%clk 0:00:06]}  f5+ {[%clk 0:00:07]} 43. Kh5 {[%clk 0:00:06]}  Kd7 {[%clk 0:00:07]} 44. g4 {[%clk 0:00:05]}  Ne5 {[%clk 0:00:08]} 45. gxf5 {[%clk 0:00:05]}  Bf3+ {[%clk 0:00:09]} 46. Kh6 {[%clk 0:00:05]}  Bd5 {[%clk 0:00:10]} 47. Rg7+ {[%clk 0:00:05]}  Kc6 {[%clk 0:00:10]} 48. Rc7+ {[%clk 0:00:06]}  Kb5 {[%clk 0:00:10]} 49. Re7 {[%clk 0:00:06]}  Nc6 {[%clk 0:00:10]} 50. Rxh7 {[%clk 0:00:04]}  Rd2 {[%clk 0:00:10]} 51. d7 {[%clk 0:00:05]}  Bc4 {[%clk 0:00:11]} 52. f6 {[%clk 0:00:04]}  Kxc5 {[%clk 0:00:11]} 53. Re7 {[%clk 0:00:03]}  Rd6 {[%clk 0:00:11]} 54. Kg7 {[%clk 0:00:03]}  Nd4 {[%clk 0:00:12]} 55. f7 {[%clk 0:00:02]}  Nf5+ {[%clk 0:00:12]} 56. Kh7 {[%clk 0:00:01]}  Nxe7 {[%clk 0:00:13]} 57. f8=Q {[%clk 0:00:01]}  Nc6 {[%clk 0:00:13]} 0-1


[Site "https://www.chess.com"]

[Event "Titled Tuesday Blitz May 25 2021"]
[White "Navalgund, Niranjan"]
[Black "Sanchez Alvares, Kelvin Antonio"]
[WhiteFideId "5030854"]
[BlackFideId "3906680"]
[WhiteElo "2290"]
[BlackElo "2247"]
[Result "1-0"]
[Round "10"]
[TimeControl "180+1"]
[Date "2021.05.25"]
[WhiteClock "0:00:56"]
[BlackClock "0:00:17"]

1. e4 {[%clk 0:03:00]}  e5 {[%clk 0:02:58]} 2. Nf3 {[%clk 0:03:00]}  Nc6 {[%clk 0:02:58]} 3. Nc3 {[%clk 0:02:59]}  Bc5 {[%clk 0:02:50]} 4. Nxe5 {[%clk 0:02:58]}  Nxe5 {[%clk 0:02:49]} 5. d4 {[%clk 0:02:58]}  Bd6 {[%clk 0:02:50]} 6. f4 {[%clk 0:02:58]}  Nc6 {[%clk 0:02:47]} 7. e5 {[%clk 0:02:55]}  Bb4 {[%clk 0:02:46]} 8. d5 {[%clk 0:02:47]}  Nce7 {[%clk 0:02:38]} 9. Bc4 {[%clk 0:02:45]}  d6 {[%clk 0:02:37]} 10. O-O {[%clk 0:02:44]}  Bf5 {[%clk 0:02:30]} 11. g4 {[%clk 0:02:37]}  Bc5+ {[%clk 0:02:17]} 12. Kh1 {[%clk 0:02:34]}  Nh6 {[%clk 0:02:15]} 13. gxf5 {[%clk 0:02:32]}  Nexf5 {[%clk 0:02:13]} 14. Ne4 {[%clk 0:02:30]}  Qh4 {[%clk 0:02:09]} 15. Qe1 {[%clk 0:02:19]}  Qxe1 {[%clk 0:01:49]} 16. Rxe1 {[%clk 0:02:18]}  O-O-O {[%clk 0:01:47]} 17. Nxc5 {[%clk 0:02:18]}  dxc5 {[%clk 0:01:46]} 18. c3 {[%clk 0:02:12]}  Ng4 {[%clk 0:01:37]} 19. Bd2 {[%clk 0:02:02]}  h5 {[%clk 0:01:33]} 20. h3 {[%clk 0:01:53]}  Ngh6 {[%clk 0:01:32]} 21. Rad1 {[%clk 0:01:44]}  Ng3+ {[%clk 0:01:28]} 22. Kh2 {[%clk 0:01:43]}  Nhf5 {[%clk 0:01:27]} 23. h4 {[%clk 0:01:35]}  Rh6 {[%clk 0:01:18]} 24. e6 {[%clk 0:01:21]}  fxe6 {[%clk 0:00:56]} 25. dxe6 {[%clk 0:01:17]}  Nd6 {[%clk 0:00:53]} 26. e7 {[%clk 0:01:11]}  Re8 {[%clk 0:00:51]} 27. Be6+ {[%clk 0:01:11]}  Rxe6 {[%clk 0:00:26]} 28. Rxe6 {[%clk 0:01:12]}  Nge4 {[%clk 0:00:24]} 29. Be3 {[%clk 0:01:03]}  b6 {[%clk 0:00:21]} 30. f5 {[%clk 0:01:02]}  Nf6 {[%clk 0:00:20]} 31. Bg5 {[%clk 0:00:57]}  Nfe4 {[%clk 0:00:17]} 32. Rxe4 {[%clk 0:00:56]} 1-0


[Site "https://www.chess.com"]

[Event "Titled Tuesday Blitz May 25 2021"]
[White "Niraj, Saripalli"]
[Black "Wagh Suyog"]
[WhiteFideId "5045657"]
[BlackFideId "25071688"]
[WhiteElo "2113"]
[BlackElo "2219"]
[Result "1-0"]
[Round "10"]
[TimeControl "180+1"]
[Date "2021.05.25"]
[WhiteClock "0:00:27"]
[BlackClock "0:01:47"]

1. d4 {[%clk 0:03:00]}  b6 {[%clk 0:02:58]} 2. e4 {[%clk 0:02:55]}  g6 {[%clk 0:02:58]} 3. Nc3 {[%clk 0:02:56]}  Bg7 {[%clk 0:02:58]} 4. Be3 {[%clk 0:02:51]}  Bb7 {[%clk 0:02:58]} 5. Nf3 {[%clk 0:02:45]}  e6 {[%clk 0:02:58]} 6. Qd2 {[%clk 0:02:43]}  d6 {[%clk 0:02:58]} 7. h4 {[%clk 0:02:40]}  h6 {[%clk 0:02:58]} 8. O-O-O {[%clk 0:02:35]}  a6 {[%clk 0:02:57]} 9. d5 {[%clk 0:02:25]}  e5 {[%clk 0:02:56]} 10. g4 {[%clk 0:02:22]}  Nd7 {[%clk 0:02:55]} 11. Kb1 {[%clk 0:02:19]}  Ne7 {[%clk 0:02:55]} 12. Bh3 {[%clk 0:02:11]}  b5 {[%clk 0:02:54]} 13. a3 {[%clk 0:01:43]}  Nb6 {[%clk 0:02:52]} 14. b3 {[%clk 0:01:41]}  Bc8 {[%clk 0:02:52]} 15. Ne1 {[%clk 0:01:28]}  Bd7 {[%clk 0:02:51]} 16. Nd3 {[%clk 0:01:26]}  Qc8 {[%clk 0:02:42]} 17. f4 {[%clk 0:01:21]}  exf4 {[%clk 0:02:34]} 18. Nxf4 {[%clk 0:01:21]}  a5 {[%clk 0:02:27]} 19. Bd4 {[%clk 0:01:20]}  O-O {[%clk 0:02:18]} 20. Bxg7 {[%clk 0:01:17]}  Kxg7 {[%clk 0:02:19]} 21. Qd4+ {[%clk 0:01:15]}  Kh7 {[%clk 0:02:16]} 22. g5 {[%clk 0:01:11]}  h5 {[%clk 0:02:09]} 23. Nxb5 {[%clk 0:01:02]}  a4 {[%clk 0:02:07]} 24. b4 {[%clk 0:01:01]}  Bxh3 {[%clk 0:02:02]} 25. Rxh3 {[%clk 0:00:59]}  Nd7 {[%clk 0:02:02]} 26. Rc3 {[%clk 0:00:55]}  Qb7 {[%clk 0:01:55]} 27. Rxc7 {[%clk 0:00:37]}  Qxb5 {[%clk 0:01:55]} 28. c4 {[%clk 0:00:37]}  Qb8 {[%clk 0:01:54]} 29. Rxd7 {[%clk 0:00:36]}  Qe8 {[%clk 0:01:50]} 30. Rxd6 {[%clk 0:00:34]}  Rc8 {[%clk 0:01:50]} 31. Nxh5 {[%clk 0:00:30]}  Ng8 {[%clk 0:01:47]} 32. Qg7# {[%clk 0:00:27]} 1-0


[Site "https://www.chess.com"]

[Event "Titled Tuesday Blitz May 25 2021"]
[White "Noboa Silva, Kevin"]
[Black "elohunter1999"]
[WhiteFideId "3618471"]
[WhiteElo "2161"]
[BlackElo "2559"]
[Result "0-1"]
[Round "10"]
[TimeControl "180+1"]
[Date "2021.05.25"]
[WhiteClock "0:00:04"]
[BlackClock "0:00:12"]

1. d4 {[%clk 0:03:00]}  Nf6 {[%clk 0:02:40]} 2. c4 {[%clk 0:03:00]}  c5 {[%clk 0:02:39]} 3. d5 {[%clk 0:03:00]}  g6 {[%clk 0:02:39]} 4. Nc3 {[%clk 0:03:00]}  Bg7 {[%clk 0:02:38]} 5. e4 {[%clk 0:03:00]}  d6 {[%clk 0:02:38]} 6. h3 {[%clk 0:03:00]}  O-O {[%clk 0:02:38]} 7. Bd3 {[%clk 0:03:00]}  e6 {[%clk 0:02:34]} 8. Bg5 {[%clk 0:02:59]}  a6 {[%clk 0:02:29]} 9. a4 {[%clk 0:02:57]}  exd5 {[%clk 0:02:15]} 10. cxd5 {[%clk 0:02:56]}  Re8 {[%clk 0:02:14]} 11. Nf3 {[%clk 0:02:56]}  Nbd7 {[%clk 0:02:13]} 12. O-O {[%clk 0:02:53]}  Qb6 {[%clk 0:02:07]} 13. Qd2 {[%clk 0:02:51]}  h6 {[%clk 0:02:05]} 14. Bxh6 {[%clk 0:02:46]}  Bxh6 {[%clk 0:02:03]} 15. Qxh6 {[%clk 0:02:45]}  Qxb2 {[%clk 0:02:03]} 16. Rfc1 {[%clk 0:02:28]}  Ne5 {[%clk 0:01:59]} 17. Nxe5 {[%clk 0:02:21]}  Rxe5 {[%clk 0:02:00]} 18. a5 {[%clk 0:02:05]}  Bd7 {[%clk 0:01:34]} 19. Rab1 {[%clk 0:01:58]}  Qa3 {[%clk 0:01:34]} 20. Rxb7 {[%clk 0:01:54]}  Qxa5 {[%clk 0:01:28]} 21. Qf4 {[%clk 0:01:41]}  Kg7 {[%clk 0:01:25]} 22. g4 {[%clk 0:01:30]}  Qd8 {[%clk 0:01:18]} 23. Rcb1 {[%clk 0:01:17]}  a5 {[%clk 0:01:10]} 24. Bb5 {[%clk 0:00:56]}  Bxb5 {[%clk 0:01:08]} 25. R1xb5 {[%clk 0:00:55]}  g5 {[%clk 0:00:59]} 26. Qe3 {[%clk 0:00:47]}  a4 {[%clk 0:00:59]} 27. f4 {[%clk 0:00:36]}  gxf4 {[%clk 0:00:59]} 28. Qxf4 {[%clk 0:00:36]}  a3 {[%clk 0:00:55]} 29. Na2 {[%clk 0:00:22]}  Qe8 {[%clk 0:00:39]} 30. g5 {[%clk 0:00:17]}  Nxe4 {[%clk 0:00:37]} 31. h4 {[%clk 0:00:11]}  Nxg5 {[%clk 0:00:14]} 32. hxg5 {[%clk 0:00:10]}  Re1+ {[%clk 0:00:14]} 33. Kg2 {[%clk 0:00:09]}  Qe2+ {[%clk 0:00:14]} 34. Qf2 {[%clk 0:00:07]}  Qe4+ {[%clk 0:00:13]} 35. Kg3 {[%clk 0:00:05]}  Re3+ {[%clk 0:00:13]} 36. Kh2 {[%clk 0:00:05]}  Rh8+ {[%clk 0:00:12]} 37. Kg1 {[%clk 0:00:04]}  Rh1# {[%clk 0:00:12]} 0-1


[Site "https://www.chess.com"]

[Event "Titled Tuesday Blitz May 25 2021"]
[White "Ozen, Bahadir"]
[Black "Fernandez, Daniel Howard"]
[WhiteFideId "6337058"]
[BlackFideId "5801605"]
[WhiteElo "2503"]
[BlackElo "2468"]
[Result "1-0"]
[Round "10"]
[TimeControl "180+1"]
[Date "2021.05.25"]
[WhiteClock "0:01:39"]
[BlackClock "0:01:44"]

1. d4 {[%clk 0:03:00]}  Nf6 {[%clk 0:02:59]} 2. Nf3 {[%clk 0:03:01]}  d5 {[%clk 0:02:59]} 3. c4 {[%clk 0:03:01]}  e6 {[%clk 0:02:59]} 4. e3 {[%clk 0:03:00]}  c5 {[%clk 0:02:57]} 5. cxd5 {[%clk 0:02:58]}  exd5 {[%clk 0:02:57]} 6. Bb5+ {[%clk 0:02:59]}  Nc6 {[%clk 0:02:57]} 7. O-O {[%clk 0:02:57]}  cxd4 {[%clk 0:02:56]} 8. exd4 {[%clk 0:02:50]}  Be7 {[%clk 0:02:53]} 9. Nc3 {[%clk 0:02:49]}  O-O {[%clk 0:02:52]} 10. h3 {[%clk 0:02:49]}  Bf5 {[%clk 0:02:52]} 11. Re1 {[%clk 0:02:35]}  Bb4 {[%clk 0:02:46]} 12. Bg5 {[%clk 0:02:32]}  h6 {[%clk 0:02:44]} 13. Bxf6 {[%clk 0:02:32]}  Qxf6 {[%clk 0:02:36]} 14. Nxd5 {[%clk 0:02:30]}  Qd6 {[%clk 0:02:37]} 15. Bxc6 {[%clk 0:02:18]}  Bxe1 {[%clk 0:02:30]} 16. Qxe1 {[%clk 0:02:19]}  bxc6 {[%clk 0:02:28]} 17. Ne7+ {[%clk 0:02:19]}  Kh7 {[%clk 0:02:25]} 18. Nxf5 {[%clk 0:02:20]}  Qd5 {[%clk 0:02:25]} 19. Ne3 {[%clk 0:02:19]}  Qb5 {[%clk 0:02:24]} 20. Qc3 {[%clk 0:02:17]}  Rab8 {[%clk 0:02:23]} 21. b3 {[%clk 0:02:17]}  a5 {[%clk 0:02:22]} 22. Rc1 {[%clk 0:02:17]}  a4 {[%clk 0:02:22]} 23. Qc2+ {[%clk 0:02:17]}  Kg8 {[%clk 0:02:22]} 24. bxa4 {[%clk 0:02:17]}  Qb4 {[%clk 0:02:21]} 25. Qxc6 {[%clk 0:02:17]}  Ra8 {[%clk 0:02:21]} 26. Rc4 {[%clk 0:02:13]}  Qb1+ {[%clk 0:02:20]} 27. Kh2 {[%clk 0:02:13]}  Qxa2 {[%clk 0:02:21]} 28. Kg3 {[%clk 0:02:08]}  f5 {[%clk 0:02:13]} 29. Nxf5 {[%clk 0:02:02]}  Ra5 {[%clk 0:01:47]} 30. Ne7+ {[%clk 0:01:42]}  Kh7 {[%clk 0:01:44]} 31. Qe4+ {[%clk 0:01:39]} 1-0


[Site "https://www.chess.com"]

[Event "Titled Tuesday Blitz May 25 2021"]
[White "Petukhov, Dmitry"]
[Black "Villegas, Pierre"]
[WhiteFideId "4142748"]
[BlackFideId "654183"]
[WhiteElo "2356"]
[BlackElo "2411"]
[Result "1-0"]
[Round "10"]
[TimeControl "180+1"]
[Date "2021.05.25"]
[WhiteClock "0:02:06"]
[BlackClock "0:01:59"]

1. e4 {[%clk 0:03:00]}  c6 {[%clk 0:02:59]} 2. d4 {[%clk 0:03:00]}  d5 {[%clk 0:03:00]} 3. Nd2 {[%clk 0:03:01]}  dxe4 {[%clk 0:02:57]} 4. Nxe4 {[%clk 0:03:02]}  Nf6 {[%clk 0:02:58]} 5. Nxf6+ {[%clk 0:03:02]}  exf6 {[%clk 0:02:59]} 6. c3 {[%clk 0:03:03]}  Bd6 {[%clk 0:02:59]} 7. Bd3 {[%clk 0:03:03]}  O-O {[%clk 0:03:00]} 8. Qh5 {[%clk 0:03:04]}  Re8+ {[%clk 0:03:01]} 9. Ne2 {[%clk 0:03:03]}  g6 {[%clk 0:02:59]} 10. Qh4 {[%clk 0:03:04]}  Nd7 {[%clk 0:02:43]} 11. O-O {[%clk 0:03:03]}  Nf8 {[%clk 0:02:41]} 12. Re1 {[%clk 0:03:03]}  Bd7 {[%clk 0:02:36]} 13. Bf4 {[%clk 0:02:59]}  Bxf4 {[%clk 0:02:24]} 14. Nxf4 {[%clk 0:02:59]}  Ne6 {[%clk 0:02:21]} 15. h3 {[%clk 0:02:43]}  f5 {[%clk 0:02:13]} 16. Qg3 {[%clk 0:02:37]}  Qc7 {[%clk 0:02:00]} 17. Nh5 {[%clk 0:02:06]}  Qf4 {[%clk 0:01:59]} 1-0


[Site "https://www.chess.com"]